fUSD/lending_fUSD_20241107
["ID","MTS","AMOUNT","RATE_DAILY","PERIOD"]
[341553868,1730976296535,-739.31040414,0.0004384,120]
[341553869,1730976296559,-739.31040414,0.0004384,120]
[341553870,1730976296583,-739.31040414,0.0004384,120]
[341553871,1730976296607,-739.31040414,0.0004384,120]
[341553872,1730976296630,-739.31040414,0.0004384,120]
[341553873,1730976296654,-739.31040414,0.0004384,120]
[341553874,1730976296679,-739.31040414,0.0004384,120]
[341553875,1730976296704,-739.31040414,0.0004384,120]
[341553876,1730976296729,-739.31040414,0.0004384,120]
[341553877,1730976296755,-739.31040414,0.0004384,120]
[341553878,1730976296779,-739.31,0.0004384,120]
[341553879,1730976296802,-442.36154264,0.0004384,120]
[341553880,1730976296826,-442.36154264,0.0004384,120]
[341553881,1730976296850,-442.36154264,0.0004384,120]
[341553882,1730976296876,-442.36154264,0.0004384,120]
[341553883,1730976296899,-442.36154264,0.0004384,120]
[341553884,1730976296924,-442.36154264,0.0004384,120]
[341553885,1730976296951,-442.36154264,0.0004384,120]
[341553886,1730976296977,-442.36154264,0.0004384,120]
[341553887,1730976297001,-442.36154264,0.0004384,120]
[341553888,1730976297024,-442.36154264,0.0004384,120]
[341553889,1730976297048,-442.36154264,0.0004384,120]
[341553890,1730976297072,-442.36154264,0.0004384,120]
[341553891,1730976297096,-442.36154264,0.0004384,120]
[341553892,1730976297120,-442.36154264,0.0004384,120]
[341553893,1730976297145,-442.36154264,0.0004384,120]
[341553894,1730976297171,-442.36154264,0.0004384,120]
[341553895,1730976297198,-442.36154264,0.0004384,120]
[341553896,1730976297225,-442.36154264,0.0004384,120]
[341553897,1730976297250,-442.36154264,0.0004384,120]
[341553898,1730976297275,-442.36,0.0004384,120]
[341553899,1730976297299,-663.54231396,0.0004384,120]
[341553900,1730976297323,-663.54231396,0.0004384,120]
[341553901,1730976297347,-663.54231396,0.0004384,120]
[341553902,1730976297371,-663.54231396,0.0004384,120]
[341553903,1730976297395,-663.54231396,0.0004384,120]
[341553904,1730976297422,-663.54231396,0.0004384,120]
[341553905,1730976297447,-663.54231396,0.0004384,120]
[341553906,1730976297474,-663.54231396,0.0004384,120]
[341553907,1730976297498,-663.54231396,0.0004384,120]
[341553908,1730976297522,-663.54231396,0.0004384,120]
[341553909,1730976297547,-663.54231396,0.0004384,120]
[341553910,1730976297571,-663.54231396,0.0004384,120]
[341553911,1730976297596,-663.54231396,0.0004384,120]
[341553912,1730976297620,-663.54231396,0.0004384,120]
[341553913,1730976297646,-663.54231396,0.0004384,120]
[341553914,1730976297670,-663.54231396,0.0004384,120]
[341553915,1730976297694,-663.54231396,0.0004384,120]
[341553916,1730976297724,-663.54231396,0.0004384,120]
[341553917,1730976297749,-663.54231396,0.0004384,120]
[341553918,1730976297773,-663.54,0.0004384,120]
[341553919,1730976297797,-500.0,0.00043857,30]
[341553920,1730976297821,-1851.5,0.0004388,30]
[341553921,1730976297845,-252.27822,0.000439,120]
[341553922,1730976297868,-1000.0,0.000439,30]
[341553923,1730976297891,-150.0,0.000439,120]
[341553924,1730976297915,-150.0,0.000439,120]
[341553925,1730976297939,-1000.0,0.000439,30]
[341553926,1730976297972,-150.0,0.000439,120]
[341553927,1730976297996,-812.17109,0.000439,120]
[341553928,1730976298020,-150.0,0.000439,120]
[341553929,1730976298045,-286.76,0.000439,72]
[341553930,1730976298070,-150.0,0.00043902,120]
[341553931,1730976298097,-50000.0,0.00044,34]
[341553932,1730976298121,-242.96343236,0.00044,90]
[341553933,1730976298145,-4474.03949885,0.00044,30]
[341553934,1730976298170,-9892.73420939,0.00044,120]
[341553935,1730976298197,-30000.75681066,0.00044,120]
[341553936,1730976298224,-900.0,0.00044,45]
[341553937,1730976298249,-27115.81986837,0.00044,120]
[341553938,1730976298273,-1263.0,0.00044,60]
[341553939,1730976298482,-550.0,0.00044,120]
[341553940,1730976298507,-1000.0,0.00044,120]
[341553941,1730976298532,-653.4659938,0.00044,120]
[341553942,1730976298556,-2500.0,0.00044,30]
[341553943,1730976298580,-250.0,0.00044,30]
[341553944,1730976298606,-500.0,0.00044,120]
[341553945,1730976298631,-720.0,0.00044,120]
[341553946,1730976298655,-5372.74608019,0.00044,120]
[341553947,1730976298679,-2263.36,0.00044,30]
[341553948,1730976298703,-250.0,0.00044,30]
[341553949,1730976298730,-505.40047,0.00044,57]
[341553950,1730976298754,-1073.28,0.00044016,30]
[341553951,1730976298778,-1073.28,0.00044016,30]
[341553952,1730976298803,-158.89,0.00044047,120]
[341553953,1730976298827,-900.0,0.00044096,120]
[341553954,1730976298850,-500.0,0.00044109,30]
[341553955,1730976298875,-1000.0,0.000442,30]
[341553956,1730976298900,-1000.0,0.000442,30]
[341553957,1730976298924,-202.450999,0.00044224,120]
[341553958,1730976298949,-150.0,0.00044226,120]
[341553959,1730976298976,-1073.28,0.00044289,30]
[341553960,1730976299001,-1073.28,0.00044289,30]
[341553961,1730976299025,-500.0,0.00044332,120]
[341553962,1730976299050,-500.0,0.00044383,30]
[341553963,1730976299074,-150.0,0.00044384,30]
[341553964,1730976299100,-300.0,0.000444,120]
[341553965,1730976299124,-300.0,0.000444,120]
[341553966,1730976299149,-160.408,0.00044427,120]
[341553967,1730976299177,-150.0,0.00044436,120]
[341553968,1730976299204,-30000.0,0.000445,120]
[341553969,1730976299230,-1000.0,0.000445,30]
[341553970,1730976299253,-1000.0,0.000445,30]
[341553971,1730976299277,-275.37590446,0.00044515,30]
[341553972,1730976299302,-2756.74,0.0004452,120]
[341553973,1730976299326,-1000.0,0.00044521,120]
[341553974,1730976299350,-1003.44,0.00044525,77]
[341553975,1730976299374,-1073.28,0.00044563,30]
[341553976,1730976299399,-1073.28,0.00044563,30]
[341553977,1730976299422,-6871.4,0.000446,120]
[341553978,1730976299447,-900.0,0.00044644,120]
[341553979,1730976299471,-700.0,0.00044644,120]
[341553980,1730976299495,-1500.0,0.00044644,120]
[341553981,1730976299519,-500.0,0.00044657,30]
[341553982,1730976299544,-17838.39429926,0.0004466,120]
[341553983,1730976299568,-4505.6,0.00044746,117]
[341553984,1730976299593,-30000.0,0.0004475,120]
[341553985,1730976299619,-150.0,0.00044766,120]
[341553986,1730976299643,-1000.0,0.000448,30]
[341553987,1730976299667,-1000000.0,0.000448,120]
[341553988,1730976299692,-1000.0,0.000448,30]
[341553989,1730976299717,-1073.28,0.00044836,30]
[341553990,1730976299740,-1073.28,0.00044836,30]
[341553991,1730976299765,-782.6133247,0.0004489,120]
[341553992,1730976299789,-472847.08581694,0.000449,120]
[341553993,1730976322546,-405.0,0.00039999,31]
[341553994,1730976322591,-150.0,0.00041121,30]
[341553995,1730976322617,-150.0,0.00041193,30]
[341553996,1730976322643,-150.0,0.00041265,30]
[341553997,1730976322669,-150.0,0.00041337,30]
[341553998,1730976322694,-150.0,0.00041409,30]
[341553999,1730976322719,-150.0,0.00041481,30]
[341554000,1730976322745,-150.0,0.00041553,30]
[341554001,1730976322770,-150.0,0.00041625,30]
[341554002,1730976323655,-785.42101577,0.000436,120]
[341554003,1730976323682,-1000.0,0.00043835,120]
[341554004,1730976323708,-1000.0,0.00044383,120]
[341554005,1730976323735,-527152.91418306,0.000449,120]
[341554006,1730976323761,-10000.0,0.000449,120]
[341554007,1730976323786,-1326.33766379,0.000449,120]
[341554008,1730976323811,-768.39637976,0.000449,30]
[341554009,1730976323837,-35268.33835711,0.000449,120]
[341554010,1730976323862,-500.0,0.000449,120]
[341554011,1730976323888,-500.0,0.000449,120]
[341554012,1730976323913,-500.0,0.000449,120]
[341554013,1730976323939,-500.0,0.000449,120]
[341554014,1730976323963,-500.0,0.000449,120]
[341554015,1730976323990,-500.0,0.000449,120]
[341554016,1730976324014,-500.0,0.000449,120]
[341554017,1730976324039,-500.0,0.000449,120]
[341554018,1730976324062,-634.47228971,0.000449,120]
[341554019,1730976324086,-500.0,0.000449,120]
[341554020,1730976324110,-715.98586296,0.000449,120]
[341554021,1730976324134,-500.0,0.000449,120]
[341554022,1730976324158,-150.0,0.000449,120]
[341554023,1730976324183,-150.0,0.000449,120]
[341554024,1730976324209,-150.0,0.000449,120]
[341554025,1730976324233,-200.0,0.000449,120]
[341554026,1730976324259,-150.555,0.000449,30]
[341554027,1730976324283,-500.0,0.000449,86]
[341554028,1730976324307,-500.0,0.000449,86]
[341554029,1730976324330,-500.0,0.000449,86]
[341554030,1730976324355,-713.05344261,0.000449,86]
[341554031,1730976324378,-500.0,0.000449,120]
[341554032,1730976324402,-500.0,0.00044931,30]
[341554033,1730976324427,-1000.0,0.00044931,120]
[341554034,1730976324451,-500.0,0.00044955,30]
[341554035,1730976324475,-500.0,0.00044955,30]
[341554036,1730976324499,-500.0,0.00044955,30]
[341554037,1730976324524,-500.0,0.00044955,31]
[341554038,1730976324548,-150.0,0.00044977,120]
[341554039,1730976324572,-1000.0,0.00044999,120]
[341554040,1730976324600,-50000.0,0.00045,35]
[341554041,1730976324625,-900.0,0.00045,46]
[341554042,1730976324649,-2000.0,0.00045,120]
[341554043,1730976324675,-2000.0,0.00045,120]
[341554044,1730976324702,-500.0,0.00045,120]
[341554045,1730976324727,-30000.0,0.00045,120]
[341554046,1730976324752,-500.0,0.00045,120]
[341554047,1730976324777,-9870.760146,0.00045,120]
[341554048,1730976324802,-500.0,0.00045,120]
[341554049,1730976324826,-158.69316544,0.00045,120]
[341554050,1730976324850,-2087.78931022,0.00045,30]
[341554051,1730976324873,-3938.09425788,0.00045,45]
[341554052,1730976324898,-150.0,0.00045,85]
[341554053,1730976324922,-50000.0,0.00045,120]
[341554054,1730976324946,-1621.25811,0.00045,120]
[341554055,1730976324974,-978.06742061,0.00045,30]
[341554056,1730976325001,-1000.0,0.00045,120]
[341554057,1730976325025,-1000.0,0.00045,120]
[341554058,1730976325049,-50000.0,0.00045,45]
[341554059,1730976325073,-222.63301628,0.00045,120]
[341554060,1730976325098,-600.0,0.00045,120]
[341554061,1730976325122,-8888.0,0.00045,120]
[341554062,1730976325146,-10000.0,0.00045,120]
[341554063,1730976325171,-1204.04442744,0.00045,120]
[341554064,1730976325203,-15412.0,0.00045,30]
[341554065,1730976325227,-250.0,0.00045,30]
[341554066,1730976325252,-289.1430805,0.00045,120]
[341554067,1730976325276,-262.8123382,0.00045,120]
[341554068,1730976325300,-216.70333461,0.00045,120]
[341554069,1730976325325,-185.78587311,0.00045,120]
[341554070,1730976325349,-160.0,0.00045,40]
[341554071,1730976325375,-567.59472195,0.00045,120]
[341554072,1730976325400,-2858.50939625,0.00045,120]
[341554073,1730976325425,-20000.0,0.00045,30]
[341554074,1730976325449,-34000.0,0.00045,30]
[341554075,1730976325474,-1000.0,0.00045,120]
[341554076,1730976325499,-346948.85441927,0.00045,30]
[341554077,1730976325525,-51457.0,0.00045,90]
[341554078,1730976325549,-9999.999999,0.00045,120]
[341554079,1730976325575,-200.0,0.00045,120]
[341554080,1730976325599,-5000.0,0.00045,120]
[341554081,1730976325625,-857.71931598,0.00045,120]
[341554082,1730976325650,-213.54794775,0.00045,30]
[341554083,1730976325874,-150.0,0.00045,120]
[341554084,1730976325900,-150.0,0.00045,120]
[341554085,1730976325926,-150.0,0.00045,120]
[341554086,1730976325952,-176.231899,0.00045,120]
[341554087,1730976325980,-151.0,0.00045041,120]
[341554088,1730976326010,-606.0,0.00045081,120]
[341554089,1730976326035,-11244.50859611,0.0004509,30]
[341554090,1730976326062,-510.56653553,0.00045093,40]
[341554091,1730976326088,-595.32076364,0.00045093,40]
[341554092,1730976326113,-237.01358589,0.00045093,40]
[341554093,1730976326140,-1000.0,0.000451,30]
[341554094,1730976326166,-1000.0,0.000451,30]
[341554095,1730976326198,-900.0,0.00045192,120]
[341554096,1730976326225,-1500.0,0.00045192,120]
[341554097,1730976326251,-500.0,0.00045205,30]
[341554098,1730976326282,-2756.74,0.00045205,120]
[341554099,1730976326308,-1000.0,0.00045205,120]
[341554100,1730976326331,-300.0,0.00045205,30]
[341554101,1730976326356,-361.9,0.00045205,30]
[341554102,1730976326378,-150.0,0.00045205,30]
[341554103,1730976326403,-150.0,0.00045205,30]
[341554104,1730976326426,-150.0,0.00045205,30]
[341554105,1730976326450,-150.0,0.00045205,30]
[341554106,1730976326475,-150.0,0.00045205,30]
[341554107,1730976326500,-432.7,0.00045205,30]
[341554108,1730976326524,-30000.0,0.0004525,120]
[341554109,1730976326550,-150.0,0.0004529,120]
[341554110,1730976326575,-1942.30108211,0.000453,120]
[341554111,1730976326601,-1000.0,0.000454,30]
[341554112,1730976326627,-1000.0,0.000454,30]
[341554113,1730976326653,-600.0,0.000454,120]
[341554114,1730976326677,-500.0,0.00045466,30]
[341554115,1730976326700,-500.0,0.00045466,30]
[341554116,1730976326724,-500.0,0.00045479,30]
[341554117,1730976326749,-1000.0,0.00045479,120]
[341554118,1730976326774,-30000.0,0.000455,120]
[341554119,1730976326797,-12217.88288842,0.000455,120]
[341554120,1730976326822,-50000.0,0.000455,31]
[341554121,1730976326846,-983.01,0.00045556,30]
[341554122,1730976326870,-13424.89691875,0.000456,120]
[341554123,1730976326896,-150.0,0.000456,120]
[341554124,1730976326920,-812.17109,0.000456,120]
[341554125,1730976326945,-150.0,0.000456,120]
[341554126,1730976326974,-218.13,0.00045635,120]
[341554127,1730976327000,-500.0,0.00045656,30]
[341554128,1730976327024,-500.0,0.00045666,120]
[341554129,1730976327049,-250000.0,0.0004569,120]
[341554130,1730976327073,-1000.0,0.000457,30]
[341554131,1730976327097,-150.0,0.000457,120]
[341554132,1730976327120,-150.0,0.000457,120]
[341554133,1730976327144,-9930.0,0.000457,120]
[341554134,1730976327169,-1000.0,0.000457,30]
[341554135,1730976327194,-900.0,0.0004574,120]
[341554136,1730976327218,-1500.0,0.0004574,120]
[341554137,1730976327242,-30000.0,0.0004575,120]
[341554138,1730976327266,-500.0,0.00045753,30]
[341554139,1730976327290,-411.55307209,0.00045753,120]
[341554140,1730976327314,-33728.33765532,0.000458,60]
[341554141,1730976327339,-2756.74,0.0004589,120]
[341554142,1730976327364,-1000.0,0.0004589,120]
[341554143,1730976327388,-6435.36390011,0.000459,60]
[341554144,1730976327413,-1000.0,0.00045999,120]
[341554145,1730976327441,-50000.0,0.00046,46]
[341554146,1730976327465,-900.0,0.00046,47]
[341554147,1730976327489,-450.0,0.00046,120]
[341554148,1730976327515,-1000.0,0.00046,30]
[341554149,1730976327539,-500.0,0.00046,120]
[341554150,1730976327563,-693.0,0.00046,120]
[341554151,1730976327588,-1000.0,0.00046,120]
[341554152,1730976327612,-10000.0,0.00046,75]
[341554153,1730976327636,-10836.77018582,0.00046,60]
[341554154,1730976327660,-1800.0,0.00046,70]
[341554155,1730976327683,-150.0,0.00046,96]
[341554156,1730976327707,-8000.0,0.00046,120]
[341554157,1730976327731,-609.0,0.00046,120]
[341554158,1730976327756,-220.0,0.00046,120]
[341554159,1730976327780,-8556.44,0.00046,120]
[341554160,1730976327805,-2500.0,0.00046,30]
[341554161,1730976327828,-1000.0,0.00046,30]
[341554162,1730976327852,-40162.32149052,0.00046,30]
[341554163,1730976327875,-250.0,0.00046,30]
[341554164,1730976327899,-4511.96022743,0.00046,120]
[341554165,1730976327923,-11621.27770729,0.00046,60]
[341554166,1730976327948,-50000.0,0.00046,31]
[341554167,1730976327974,-5292.92288838,0.00046,120]
[341554168,1730976328001,-1297.94,0.00046,60]
[341554169,1730976328026,-4384.02004586,0.00046,120]
[341554170,1730976328050,-1276.12759029,0.00046,120]
[341554171,1730976328075,-250.0,0.00046,30]
[341554172,1730976328100,-500.0,0.00046027,30]
[341554173,1730976328124,-1000.0,0.00046027,120]
[341554174,1730976328148,-361.9,0.00046027,30]
[341554175,1730976328174,-150.0,0.00046027,30]
[341554176,1730976328201,-150.0,0.00046027,30]
[341554177,1730976328229,-864.62,0.00046027,30]
[341554178,1730976328255,-432.7,0.00046027,30]
[341554179,1730976328281,-150.0,0.00046027,30]
[341554180,1730976328306,-600.0,0.00046048,120]
[341554181,1730976328330,-17838.39429926,0.0004616,120]
[341554182,1730976328355,-10000.0,0.000462,120]
[341554183,1730976328382,-13000.0,0.0004625,50]
[341554184,1730976328407,-900.0,0.00046288,120]
[341554185,1730976328431,-267.13662554,0.00046288,120]
[341554186,1730976328456,-788.09505175,0.000463,120]
[341554187,1730976328642,-1000.0,0.000463,30]
[341554188,1730976328668,-644.35581355,0.00046301,30]
[341554189,1730976328694,-600.0,0.000464,120]
[341554190,1730976328719,-1000.0,0.00046464,60]
[341554191,1730976328744,-30000.0,0.000465,120]
[341554192,1730976328776,-150.0,0.000465,30]
[341554193,1730976328800,-491.66830329,0.000465,120]
[341554194,1730976328825,-11725.31464199,0.000465,120]
[341554195,1730976328849,-1029.96656624,0.000465,120]
[341554196,1730976328875,-50000.0,0.000465,32]
[341554197,1730976328900,-24432.88,0.0004655,120]
[341554198,1730976328924,-1571.13478593,0.00046562,120]
[341554199,1730976328949,-5000.0,0.00046575,120]
[341554200,1730976328977,-2756.74,0.00046575,120]
[341554201,1730976329003,-500.0,0.00046575,60]
[341554202,1730976329027,-500.0,0.00046575,60]
[341554203,1730976329050,-500.0,0.00046575,60]
[341554204,1730976329073,-479.11126237,0.00046575,60]
[341554205,1730976329097,-1000.0,0.00046575,120]
[341554206,1730976329122,-1080.17471533,0.00046575,120]
[341554207,1730976329145,-1000.0,0.000466,30]
[341554208,1730976329171,-150.0,0.00046649,30]
[341554209,1730976329197,-150.0,0.00046649,30]
[341554210,1730976329221,-982.88617951,0.00046649,30]
[341554211,1730976329245,-4485.56328097,0.00046649,30]
[341554212,1730976329272,-68520.0,0.000467,120]
[341554213,1730976329296,-4915.2,0.00046793,117]
[341554214,1730976329321,-10000.0,0.000468,120]
[341554215,1730976329345,-32186.5387,0.000468,60]
[341554216,1730976329369,-630.04603954,0.00046836,120]
[341554217,1730976329394,-150.0,0.00046849,30]
[341554218,1730976329418,-150.0,0.00046849,30]
[341554219,1730976329443,-361.9,0.00046849,30]
[341554220,1730976329470,-204.57,0.00046849,30]
[341554221,1730976329498,-158.22,0.00046849,30]
[341554222,1730976329524,-432.7,0.00046849,30]
[341554223,1730976329550,-150.0,0.00046849,30]
[341554224,1730976329575,-150.0,0.0004687,60]
[341554225,1730976329600,-2181.93817836,0.00046898,120]
[341554226,1730976329625,-666.3324916,0.00046898,90]
[341554227,1730976329649,-225.12339888,0.00046898,90]
[341554228,1730976329673,-410.03646665,0.00046986,90]
[341554229,1730976329698,-500.0,0.00046999,120]
[341554230,1730976329724,-50000.0,0.00047,47]
[341554231,1730976329750,-10000.0,0.00047,90]
[341554232,1730976329776,-47699.95629214,0.00047,120]
[341554233,1730976329801,-373.40800833,0.00047,120]
[341554234,1730976329825,-39735.67212094,0.00047,120]
[341554235,1730976329849,-5010.19627589,0.00047,60]
[341554236,1730976329874,-200.0,0.00047,108]
[341554237,1730976329898,-2229.38607754,0.00047,120]
[341554238,1730976329922,-481.45240323,0.00047,60]
[341554239,1730976329947,-15000.0,0.00047,120]
[341554240,1730976329974,-68708.37683265,0.00047,120]
[341554241,1730976330001,-6000.0,0.00047,120]
[341554242,1730976330025,-2239.0,0.00047,60]
[341554243,1730976330050,-108140.32965728,0.00047,60]
[341554244,1730976330075,-20000.0,0.00047,120]
[341554245,1730976330100,-51000.0,0.00047,120]
[341554246,1730976330124,-6500.0,0.00047,60]
[341554247,1730976330150,-250.0,0.00047,30]
[341554248,1730976330176,-20006.05718,0.00047,30]
[341554249,1730976330206,-1889.0,0.00047,120]
[341554250,1730976330232,-50000.0,0.00047,32]
[341554251,1730976330258,-900.0,0.00047,48]
[341554252,1730976330286,-5342.52400118,0.00047,120]
[341554253,1730976330310,-10445.21012926,0.00047,120]
[341554254,1730976330335,-810.35365917,0.00047,60]
[341554255,1730976330361,-7818.59,0.00047,120]
[341554256,1730976330385,-5648.99413,0.00047,120]
[341554257,1730976330410,-1000.0,0.00047123,120]
[341554258,1730976330436,-939.02579503,0.000472,30]
[341554259,1730976330461,-30000.0,0.0004725,120]
[341554260,1730976330488,-2756.74,0.0004726,120]
[341554261,1730976330517,-150.0,0.000473,120]
[341554262,1730976330543,-812.17109,0.000473,120]
[341554263,1730976330568,-150.0,0.000473,120]
[341554264,1730976330593,-30000.0,0.0004733,120]
[341554265,1730976330620,-2739.0,0.00047378,56]
[341554266,1730976330645,-420.0,0.00047396,90]
[341554267,1730976330670,-1520.0,0.000474,120]
[341554268,1730976330695,-10177.21614016,0.000474,120]
[341554269,1730976330720,-1487.29190455,0.000474,120]
[341554270,1730976330746,-31431.16890407,0.0004742,120]
[341554271,1730976335788,-500.0,0.0003963,60]
[341554272,1730976335829,-500.0,0.00040726,60]
[341554273,1730976335863,-150.0,0.00041697,30]
[341554274,1730976335894,-150.0,0.00041769,30]
[341554275,1730976335923,-500.0,0.00041822,60]
[341554276,1730976335949,-150.0,0.00041841,30]
[341554277,1730976335978,-150.0,0.00041913,30]
[341554278,1730976336004,-150.0,0.00041985,30]
[341554279,1730976336031,-150.0,0.00042057,30]
[341554280,1730976336058,-150.0,0.00042129,30]
[341554281,1730976336085,-150.0,0.00042201,30]
[341554282,1730976336112,-150.0,0.00042273,30]
[341554283,1730976336138,-150.0,0.00042345,30]
[341554284,1730976336166,-150.0,0.00042417,30]
[341554285,1730976336194,-150.0,0.00042489,30]
[341554286,1730976336220,-150.0,0.00042561,30]
[341554287,1730976336247,-150.0,0.00042633,30]
[341554288,1730976336274,-150.0,0.00042705,30]
[341554289,1730976336306,-150.0,0.00042777,30]
[341554290,1730976336334,-150.0,0.00042849,30]
[341554291,1730976336362,-150.0,0.00042921,30]
[341554292,1730976336390,-150.0,0.00042993,30]
[341554293,1730976336418,-150.0,0.00043065,30]
[341554294,1730976337067,-150.0,0.00043137,30]
[341554295,1730976337094,-293.57106564,0.00043209,30]
[341554296,1730976337123,-183.162,0.000449,120]
[341554297,1730976337148,-500.0,0.000449,120]
[341554298,1730976337173,-500.0,0.000449,120]
[341554299,1730976337201,-919.60500977,0.000449,120]
[341554300,1730976337227,-972749.67109593,0.0004742,120]
[341554301,1730976337256,-1487.15361454,0.000475,120]
[341554302,1730976337280,-150.0,0.000475,120]
[341554303,1730976337305,-50000.0,0.000475,32]
[341554304,1730976337331,-25000.0,0.000475,120]
[341554305,1730976337357,-296.13367,0.000475,120]
[341554306,1730976337382,-150.0,0.000475,120]
[341554307,1730976337407,-150.0,0.000475,120]
[341554308,1730976337434,-17838.39429926,0.0004766,120]
[341554309,1730976337463,-1000.0,0.00047671,120]
[341554310,1730976337490,-2647.275,0.000477,120]
[341554311,1730976337517,-20215.11,0.000478,120]
[341554312,1730976337543,-198.96211689,0.0004789,120]
[341554313,1730976337570,-2756.74,0.00047945,120]
[341554314,1730976337595,-1000.0,0.00047999,120]
[341554315,1730976337623,-50000.0,0.00048,48]
[341554316,1730976337649,-2000.0,0.00048,90]
[341554317,1730976337674,-420.0,0.00048,120]
[341554318,1730976337700,-15000.0,0.00048,120]
[341554319,1730976337725,-150.0,0.00048,120]
[341554320,1730976337749,-14304.39321417,0.00048,30]
[341554321,1730976337776,-50000.0,0.00048,33]
[341554322,1730976337801,-17863.3703036,0.00048,120]
[341554323,1730976337826,-150000.0,0.00048,30]
[341554324,1730976337850,-2000.0,0.00048,30]
[341554325,1730976337875,-39175.27512111,0.00048,120]
[341554326,1730976337899,-450.0,0.00048,120]
[341554327,1730976337924,-1364.0,0.00048,120]
[341554328,1730976337949,-2500.0,0.00048,30]
[341554329,1730976337977,-250.0,0.00048,30]
[341554330,1730976338002,-5000.0,0.00048,120]
[341554331,1730976338028,-4384.02004585,0.00048,120]
[341554332,1730976338053,-1276.12759027,0.00048,120]
[341554333,1730976338077,-250.0,0.00048,30]
[341554334,1730976338105,-1000.0,0.00048219,120]
[341554335,1730976338136,-218.13,0.00048219,120]
[341554336,1730976338164,-30000.0,0.0004825,120]
[341554337,1730976338190,-20000.0,0.00048322,120]
[341554338,1730976338215,-500.0,0.00048332,120]
[341554339,1730976338240,-250000.0,0.000484,120]
[341554340,1730976338266,-156.45183,0.000484,120]
[341554341,1730976338291,-50000.0,0.000485,33]
[341554342,1730976338315,-22000.0,0.000486,120]
[341554343,1730976338339,-1987.0,0.000486,120]
[341554344,1730976338363,-30016.0,0.000486,120]
[341554345,1730976338389,-2756.74,0.0004863,120]
[341554346,1730976338414,-35000.0,0.0004865,120]
[341554347,1730976338439,-1097292.71402297,0.0004869,120]
[341554348,1730976349414,-150.0,0.00041265,30]
[341554349,1730976349443,-150.0,0.00041481,30]
[341554350,1730976349471,-150.0,0.00041697,30]
[341554351,1730976349507,-150.0,0.00041913,30]
[341554352,1730976349536,-150.0,0.00042129,30]
[341554353,1730976349562,-150.0,0.00042345,30]
[341554354,1730976349589,-150.0,0.00042561,30]
[341554355,1730976349614,-150.0,0.00042777,30]
[341554356,1730976349641,-370.13991647,0.00042918,60]
[341554357,1730976349667,-150.0,0.00042993,30]
[341554358,1730976350046,-150.0,0.00043209,30]
[341554359,1730976350072,-770.0,0.00044,120]
[341554360,1730976350101,-770.0,0.00046,120]
[341554361,1730976350128,-702707.28597703,0.0004869,120]
[341554362,1730976350153,-150.0,0.0004869,120]
[341554363,1730976350178,-500.0,0.0004869,120]
[341554364,1730976350210,-1000.0,0.00048767,120]
[341554365,1730976350235,-377.73,0.00048767,30]
[341554366,1730976350260,-50000.0,0.000488,120]
[341554367,1730976350288,-2446.0,0.000488,120]